bitfinex/quotes_SOLUSD_20250525
["timestamp","ask_amount","ask_price","bid_price","bid_amount"]
[1748208452316,7.40074451,171.49,171.46,51.24393978]
[1748208453015,4.08357827,171.48,171.47,16.28393978]
[1748208453315,7.40074451,171.48,171.47,36.48]
[1748208455517,7.40074451,171.48,171.45,22.54123978]
[1748208455689,7.40074451,171.48,171.47,71.44]
[1748208457310,7.40074451,171.48,171.47,87.72393978]
[1748208458104,3.31716624,171.48,171.47,87.72393978]
[1748208458598,4.15476576,171.51,171.47,87.72393978]
[1748208458799,4.15476576,171.51,171.48,16.28393978]
[1748208459213,4.08501232,171.5,171.48,16.28393978]
[1748208460395,20.43870554,171.53,171.48,16.28393978]
[1748208460616,2.15977702,171.52,171.48,16.28393978]
[1748208461118,7.40118993,171.51,171.5,16.28393978]
[1748208461414,7.40118993,171.51,171.5,51.24393978]
[1748208461586,3.31753414,171.51,171.5,51.24393978]
[1748208462211,20.43870554,171.55,171.5,51.24393978]
[1748208462796,4.31831582,171.54,171.5,51.24393978]
[1748208463316,7.39723424,171.53,171.5,51.24393978]
[1748208463494,7.39723424,171.53,171.5,34.96]
[1748208464423,3.31568815,171.52,171.5,34.96]
[1748208465741,16.28393978,171.54,171.5,34.96]
[1748208466129,4.15476576,171.56,171.5,51.24393978]
[1748208466421,19.59759963,171.55,171.5,51.24393978]
[1748208467008,4.0789519,171.54,171.5,51.24393978]
[1748208468122,16.28393978,171.56,171.51,16.28393978]
[1748208469330,16.28393978,171.57,171.52,16.28393978]
[1748208469622,16.28393978,171.57,171.53,36.48]
[1748208469810,4.07685577,171.56,171.54,34.94]
[1748208470503,16.28393978,171.57,171.54,34.94]
[1748208471211,16.28393978,171.58,171.54,34.94]
[1748208471621,23.66874453,171.57,171.54,34.94]
[1748208472428,3.30918886,171.57,171.54,34.94]
[1748208472815,3.30918886,171.57,171.54,51.22393978]
[1748208473336,7.38675497,171.58,171.54,51.22393978]
[1748208474618,3.30918886,171.58,171.54,51.22393978]
[1748208475129,154.18393978,171.59,171.54,51.22393978]
[1748208475633,16.28393978,171.59,171.54,51.22393978]
[1748208477327,16.28393978,171.59,171.54,57.053459]
[1748208478633,19.5889299,171.6,171.55,16.42610135]
[1748208479227,3.30499012,171.6,171.55,16.42610135]
[1748208479732,3.30499012,171.6,171.56,16.28393978]
[1748208480127,16.28393978,171.61,171.56,16.28393978]
[1748208480521,16.28393978,171.62,171.56,16.28393978]
[1748208481739,16.28393978,171.62,171.56,22.11257615]
[1748208481918,16.28393978,171.62,171.57,16.28393978]
[1748208482123,16.28393978,171.62,171.58,34.94]
[1748208482320,16.28393978,171.63,171.59,36.46]
[1748208482631,3.30499012,171.64,171.59,36.46]
[1748208482935,16.28393978,171.63,171.59,36.46]
[1748208483821,16.28393978,171.64,171.59,52.74393978]
[1748208485020,137.9,171.65,171.59,58.57174879]
[1748208485236,16.28393978,171.64,171.59,58.57174879]
[1748208487752,16.28393978,171.64,171.6,5.96961477]
[1748208487916,177.45148503,171.68,171.56,83.84]
[1748208488269,144.84478503,171.67,171.61,36.44]
[1748208488421,137.9,171.66,171.61,36.44]
[1748208489321,16.28393978,171.62,171.61,36.44]
[1748208491127,137.9,171.66,171.61,36.44]
[1748208491333,16.28393978,171.62,171.61,36.44]
[1748208492953,16.28393978,171.63,171.61,36.44]
[1748208493160,16.28393978,171.64,171.61,36.44]
[1748208493454,16.28393978,171.64,171.62,34.92]
[1748208494841,16.28393978,171.67,171.62,34.92]
[1748208495150,139.4927,171.69,171.62,34.92]
[1748208495364,16.28393978,171.67,171.62,34.92]
[1748208496621,139.4927,171.69,171.62,34.92]
[1748208496825,16.28393978,171.68,171.62,57.03063841]
[1748208497730,16.28393978,171.68,171.63,16.28393978]
[1748208498131,154.18393978,171.69,171.63,22.1102473]
[1748208499240,16.28393978,171.7,171.64,22.25221608]
[1748208499541,16.28393978,171.7,171.65,34.92]
[1748208499749,16.28393978,171.69,171.65,34.92]
[1748208500731,137.9,171.72,171.66,16.42610135]
[1748208500951,17.89193978,171.73,171.67,52.72393978]
[1748208501256,16.28393978,171.72,171.68,34.92]
[1748208501652,16.28393978,171.73,171.68,34.92]
[1748208501956,16.28393978,171.74,171.68,51.20393978]
[1748208502255,16.28393978,171.73,171.68,51.20393978]
[1748208502753,16.28393978,171.74,171.69,0.14216157]
[1748208502926,16.28393978,171.74,171.69,16.42610135]
[1748208503435,16.28393978,171.75,171.7,16.28393978]
[1748208503832,16.28393978,171.74,171.69,0.14216157]
[1748208504039,25.40666377,171.72,171.68,34.92]
[1748208505355,25.40666377,171.73,171.68,34.92]
[1748208507961,25.40666377,171.73,171.68,0.14216157]
[1748208508258,25.40666377,171.73,171.69,71.34]
[1748208510560,25.40666377,171.72,171.69,71.34]
[1748208511235,25.40666377,171.71,171.69,71.34]
[1748208512055,25.40666377,171.71,171.65,51.40666377]
[1748208512231,25.40666377,171.71,171.7,36.42]
[1748208513453,25.40666377,171.71,171.66,25.40666377]
[1748208513663,25.40666377,171.71,171.67,36.42]
[1748208513664,25.40666377,171.69,171.67,36.42]
[1748208516261,25.40666377,171.7,171.67,36.42]
[1748208519860,25.40666377,171.7,171.68,34.9]
[1748208523865,137.9,171.73,171.68,34.9]
[1748208524053,16.26762556,171.7,171.68,34.9]
[1748208530275,16.26762556,171.7,171.69,36.42]
[1748208531559,3.30330654,171.72,171.69,58.51194053]
[1748208531749,3.30330654,171.72,171.69,36.42]
[1748208532047,16.26762556,171.74,171.69,36.42]
[1748208532475,16.26762556,171.74,171.69,42.24444996]
[1748208541864,4.11375082,171.73,171.69,58.51207552]
[1748208542579,16.26762556,171.74,171.69,58.51207552]
[1748208544078,4.1148802,171.73,171.69,58.51207552]
[1748208545083,16.26762556,171.74,171.69,58.51207552]
[1748208546482,16.26762556,171.75,171.7,22.09158489]
[1748208546661,16.26762556,171.75,171.71,34.9]
[1748208547063,4.11540798,171.74,171.71,34.9]
[1748208548065,4.11540798,171.74,171.71,56.99137599]
[1748208548262,16.26762556,171.76,171.71,56.99137599]
[1748208549087,16.26762556,171.76,171.71,40.72375043]
[1748208549298,16.26762556,171.76,171.71,51.16762556]
[1748208549485,4.1147386,171.75,171.71,56.99138885]
[1748208549992,4.1147386,171.75,171.71,40.72376329]
[1748208550197,16.26762556,171.76,171.71,40.72376329]
[1748208551263,16.26762556,171.76,171.71,34.9]
[1748208551664,16.26762556,171.76,171.71,40.72374393]
[1748208552358,4.11207665,171.75,171.71,40.72374393]
[1748208552557,4.11207665,171.75,171.71,34.9]
[1748208552764,20.37970221,171.75,171.71,34.9]
[1748208553385,4.11207665,171.75,171.71,34.9]
[1748208553603,16.26762556,171.76,171.71,34.9]
[1748208554172,16.26762556,171.74,171.71,34.9]
[1748208555881,16.26762556,171.74,171.72,36.4]
[1748208557193,16.26762556,171.73,171.72,36.4]
[1748208558794,16.26762556,171.74,171.72,36.4]
[1748208559112,23.68950979,171.73,171.72,36.4]
[1748208559780,28.00899149,171.73,171.72,36.4]
[1748208563017,30.16867283,171.73,171.72,36.4]
[1748208563902,30.16867283,171.73,171.66,83.76]
[1748208564204,16.26762556,171.68,171.67,36.4]
[1748208564506,16.26762556,171.68,171.67,71.3]
[1748208565306,16.26762556,171.68,171.67,36.4]
[1748208566581,16.26762556,171.68,171.67,36.38]
[1748208567304,20.35390835,171.68,171.66,83.76]
[1748208567508,16.26762556,171.67,171.66,120.14]
[1748208568611,20.35390835,171.67,171.66,120.14]
[1748208569599,24.66654383,171.67,171.66,120.14]
[1748208569821,27.97942223,171.67,171.66,120.14]
[1748208572196,27.97942223,171.67,171.66,36.38]
[1748208573123,30.13382531,171.67,171.66,36.38]
[1748208574522,27.97942223,171.67,171.66,36.38]
[1748208575930,37.14977706,171.67,171.66,36.38]
[1748208576819,33.83689866,171.67,171.66,36.38]
[1748208578032,33.83689866,171.67,171.63,36.4]
[1748208578367,25.43798039,171.64,171.63,36.4]
[1748208581906,29.50696947,171.64,171.63,36.4]
[1748208582809,32.80507113,171.64,171.63,36.4]
[1748208585039,29.50696947,171.64,171.63,36.4]
[1748208587035,25.43798039,171.64,171.63,36.4]
[1748208590042,29.49916395,171.64,171.63,36.4]
[1748208593363,25.43798039,171.64,171.63,36.4]
[1748208594039,26.0,171.65,171.63,36.4]
[1748208594242,25.43798039,171.64,171.63,36.4]
[1748208594534,25.43798039,171.64,171.6,36.42]
[1748208594746,25.43798039,171.61,171.6,36.42]
[1748208597931,16.2899168,171.61,171.6,36.42]
[1748208601048,20.35016393,171.61,171.6,36.42]
[1748208602346,26.0,171.58,171.47,1.5069]
[1748208602524,16.2899168,171.53,171.49,71.36]
[1748208602731,16.2899168,171.52,171.49,71.36]
[1748208603949,25.47026426,171.52,171.49,71.36]
[1748208613557,25.47026426,171.5,171.49,71.36]
[1748208613857,25.47026426,171.5,171.49,36.42]
[1748208626064,16.30828016,171.5,171.49,36.42]
[1748208626259,81.5414008,171.5,171.42,83.86]
[1748208626439,16.30828016,171.44,171.43,36.42]
[1748208629951,25.49926796,171.44,171.43,36.42]
[1748208633874,25.49926796,171.44,171.42,83.86]
[1748208634182,25.49926796,171.43,171.42,83.86]
[1748208643289,25.49926796,171.43,171.41,36.44]
[1748208643588,163.39926796,171.42,171.41,36.44]
[1748208650604,137.9,171.42,171.41,36.44]
[1748208650811,163.39926796,171.42,171.41,36.44]
[1748208651869,154.22516269,171.42,171.41,36.44]
[1748208668612,158.28740275,171.42,171.41,36.44]
[1748208669917,161.60520935,171.42,171.41,36.44]
[1748208673501,165.93025777,171.42,171.41,36.44]
[1748208682224,30.19545965,171.42,171.41,36.44]
[1748208682922,72.49503741,171.42,171.41,36.44]
[1748208683130,72.49503741,171.42,171.36,36.44]
[1748208683327,16.32516269,171.37,171.36,36.44]
[1748208683523,16.32516269,171.37,171.3,13.68894618]
[1748208683524,26.0,171.34,171.23,18.28160554]
[1748208683725,16.32516269,171.27,171.23,18.28160554]
[1748208684338,16.32516269,171.26,171.23,18.28160554]
[1748208684510,16.32516269,171.26,171.22,80.54080277]
[1748208684821,16.32516269,171.24,171.22,80.54080277]
[1748208685011,16.32516269,171.25,171.22,80.54080277]
[1748208685209,16.32516269,171.23,171.22,45.58080277]
[1748208685409,16.32516269,171.25,171.22,45.58080277]
[1748208685724,16.32516269,171.24,171.22,45.08080277]
[1748208685930,25.55325468,171.24,171.22,45.08080277]
[1748208686328,25.55325468,171.23,171.22,45.08080277]
[1748208687924,25.55325468,171.24,171.22,45.08080277]
[1748208688126,6.20538711,171.28,171.22,45.08080277]
[1748208688340,25.55325468,171.25,171.22,45.08080277]
[1748208688536,46.19254886,171.23,171.22,9.14080277]
[1748208688738,0.14216157,171.21,171.19,36.56321109]
[1748208688920,26.0,171.17,171.15,54.84481664]
[1748208689116,25.55325468,171.16,171.15,54.84481664]
[1748208690441,25.55325468,171.16,171.11,15.70606996]
[1748208690442,44.64964886,171.12,171.11,15.70606996]
[1748208690647,95.75615822,171.12,171.1,91.40802773]
[1748208690855,51.10650936,171.11,171.1,91.40802773]
[1748208691137,26.0,171.12,171.05,36.74]
[1748208691345,25.55325468,171.07,171.05,36.74]
[1748208691731,25.55325468,171.1,171.06,34.98]
[1748208691928,25.55325468,171.11,171.06,34.98]
[1748208693131,25.55325468,171.12,171.06,60.53325468]
[1748208693644,25.55325468,171.12,171.06,66.37898676]
[1748208694124,25.55325468,171.12,171.06,40.82573208]
[1748208694553,25.55325468,171.11,171.06,40.82573208]
[1748208694927,25.55325468,171.12,171.06,66.37898676]
[1748208695121,26.0,171.17,171.07,25.69541625]
[1748208695329,25.55325468,171.13,171.07,25.55325468]
[1748208695526,25.55325468,171.11,171.06,40.82573208]
[1748208695935,25.55325468,171.12,171.06,66.37898676]
[1748208696257,25.55325468,171.11,171.07,35.0]
[1748208696931,25.55325468,171.09,171.07,35.0]
[1748208697337,25.55325468,171.08,171.05,36.74]
[1748208697669,25.55325468,171.07,171.05,36.74]
[1748208697822,25.55325468,171.06,171.05,36.74]
[1748208698323,25.55325468,171.06,171.05,36.78]
[1748208699648,51.55325468,171.1,171.05,36.78]
[1748208699845,25.55325468,171.06,171.05,36.78]
[1748208701245,25.55325468,171.06,170.99,38.44]
[1748208701437,53.66964886,171.08,170.9,84.04]
[1748208701438,26.0,171.04,170.91,0.14216157]
[1748208701653,26.0,170.99,170.88,0.14216157]
[1748208701847,26.0,170.99,170.87,75.32]
[1748208701848,25.55325468,170.92,170.87,75.32]
[1748208702030,25.55325468,170.91,170.87,75.32]
[1748208702227,26.0,170.99,170.87,75.32]
[1748208702839,25.55325468,170.9,170.87,75.32]
[1748208703035,25.55325468,170.91,170.87,75.32]
[1748208703759,32.20102702,170.99,170.87,75.32]
[1748208703937,26.0,170.95,170.73,20.64600714]
[1748208704262,25.55325468,170.87,170.79,77.44]
[1748208704463,25.55325468,170.86,170.8,0.14216157]
[1748208704759,25.55325468,170.86,170.8,18.79181043]
[1748208705055,25.55325468,170.87,170.8,18.79181043]
[1748208705428,26.0,170.94,170.8,18.79181043]
[1748208705625,29.22706898,170.94,170.8,44.34506511]
[1748208705857,25.55325468,170.87,170.8,44.34506511]
[1748208706353,25.55325468,170.87,170.79,42.4]
[1748208706550,25.55325468,170.86,170.8,60.59325468]
[1748208706748,3.22706898,170.93,170.8,60.59325468]
[1748208706966,25.55325468,170.86,170.8,35.04]
[1748208707162,3.22706898,170.93,170.8,35.04]
[1748208707461,25.55325468,170.84,170.8,35.04]
[1748208707834,25.55325468,170.83,170.78,84.04]
[1748208708057,25.55325468,170.84,170.79,44.8]
[1748208708357,26.0,170.91,170.79,44.8]
[1748208708557,25.55325468,170.86,170.79,70.35325468]
[1748208709255,25.55325468,170.87,170.81,25.55325468]
[1748208709446,3.19829151,170.9,170.8,25.69541625]
[1748208709639,25.55325468,170.86,170.8,25.69541625]
[1748208709840,25.55325468,170.86,170.8,0.14216157]
[1748208710039,25.55325468,170.85,170.8,0.14216157]
[1748208710462,25.55325468,170.86,170.8,25.69541625]
[1748208710839,25.55325468,170.86,170.8,0.14216157]
[1748208711042,25.55325468,170.85,170.8,0.14216157]
[1748208711367,25.55325468,170.84,170.81,44.82]
[1748208712137,6.4378,170.88,170.81,44.82]
[1748208712339,25.55325468,170.84,170.81,44.82]
[1748208712645,6.4378,170.88,170.81,44.82]
[1748208712842,25.55325468,170.84,170.81,44.82]
[1748208713258,25.55325468,170.85,170.81,44.82]
[1748208713501,6.4378,170.88,170.81,44.82]
[1748208713764,25.55325468,170.84,170.81,44.82]
[1748208714239,25.55325468,170.85,170.81,44.82]
[1748208714441,25.55325468,170.86,170.81,44.82]
[1748208714738,25.55325468,170.84,170.81,44.82]
[1748208714936,25.55325468,170.85,170.81,44.82]
[1748208715158,6.4378,170.88,170.81,44.82]
[1748208715365,25.55325468,170.86,170.81,44.82]
[1748208716579,25.55325468,170.86,170.79,25.55325468]
[1748208716735,25.55325468,170.86,170.78,84.04]
[1748208716736,25.55325468,170.86,170.8,79.92]
[1748208717345,1.5339,170.87,170.8,44.84]
[1748208717867,25.55325468,170.86,170.8,44.84]
[1748208718577,25.55325468,170.87,170.8,44.84]
[1748208718761,25.55325468,170.86,170.8,44.84]
[1748208719068,26.0,170.89,170.8,70.39325468]
[1748208719361,25.55325468,170.86,170.8,70.39325468]
[1748208719567,25.55325468,170.86,170.8,44.84]
[1748208720156,26.0,170.89,170.81,0.14216157]
[1748208720363,25.55325468,170.87,170.81,0.14216157]
[1748208720555,7.8039,170.92,170.82,25.55325468]
[1748208720764,25.55325468,170.9,170.84,25.55325468]
[1748208721014,25.55325468,170.9,170.85,35.08]
[1748208721150,26.0,170.93,170.85,35.08]
[1748208721352,25.55325468,170.91,170.85,60.63325468]
[1748208721751,26.0,170.95,170.85,60.63325468]
[1748208721949,11.90356576,170.96,170.85,60.63325468]
[1748208722183,25.55325468,170.91,170.85,60.63325468]
[1748208722484,25.55325468,170.91,170.85,35.08]
[1748208722777,25.55325468,170.91,170.85,60.63325468]
[1748208722974,26.0,170.95,170.86,25.69541625]
[1748208723183,25.55325468,170.92,170.87,44.84]
[1748208723474,25.55325468,170.93,170.88,25.69541625]
[1748208723667,26.0,170.97,170.89,25.55325468]
[1748208723848,25.55325468,170.96,170.91,25.55325468]
[1748208724249,30.15476576,171.0,170.91,25.55325468]
[1748208724467,25.55325468,170.97,170.91,25.55325468]
[1748208724658,25.55325468,170.96,170.91,25.55325468]
[1748208724860,25.55325468,170.96,170.91,0.14216157]
[1748208725271,3.19151753,170.99,170.91,25.69541625]
[1748208725573,25.55325468,170.97,170.91,25.69541625]
[1748208725760,25.55325468,170.96,170.91,25.69541625]
[1748208726149,3.19151753,170.99,170.92,25.55325468]
[1748208726382,3.19151753,170.98,170.92,25.55325468]
[1748208726557,25.55325468,170.97,170.91,0.14216157]
[1748208726759,25.55325468,170.97,170.91,25.69541625]
[1748208727696,3.19151753,170.96,170.93,0.14216157]
[1748208727862,3.19151753,170.96,170.94,44.84]
[1748208728060,3.19151753,170.96,170.95,35.08]
[1748208728678,3.19151753,170.96,170.9,44.84]
[1748208728890,3.19151753,170.95,170.9,44.84]
[1748208729096,28.74477221,170.95,170.9,44.84]
[1748208729391,3.19151753,170.95,170.91,35.22216157]
[1748208730090,3.19151753,170.94,170.91,35.22216157]
[1748208730460,3.19151753,170.94,170.91,60.77541625]
[1748208730780,3.19151753,170.94,170.91,35.22216157]
[1748208730993,3.19151753,170.94,170.92,25.55325468]
[1748208731486,3.19151753,170.94,170.92,84.16]
[1748208731777,3.19151753,170.93,170.92,109.85541625]
[1748208734286,3.19151753,170.93,170.92,134.35575549]
[1748208737087,4.15476576,170.96,170.93,18.79181043]
[1748208737287,4.15476576,170.96,170.95,44.34506511]
[1748208737682,4.15476576,170.96,170.95,18.79181043]
[1748208737866,4.15476576,170.96,170.95,44.34506511]
[1748208738996,4.15476576,170.96,170.95,50.19472875]
[1748208739305,3.26708384,170.96,170.95,50.19472875]
[1748208740703,4.15476576,171.0,170.95,50.19472875]
[1748208740882,4.15476576,171.0,170.98,25.55325468]
[1748208741083,4.15476576,171.0,170.99,44.96]
[1748208741615,3.27216651,171.0,170.99,89.30506511]
[1748208741998,3.27216651,171.0,170.99,63.75181043]
[1748208742202,3.27216651,171.0,170.99,89.30506511]
[1748208743007,4.15476576,171.02,171.0,18.79181043]
[1748208743199,4.15476576,171.02,171.01,60.61325468]
[1748208743985,4.15476576,171.02,171.01,79.40506511]
[1748208744190,29.70802044,171.08,171.01,79.40506511]
[1748208744684,4.15476576,171.08,171.05,25.55325468]
[1748208745000,4.15476576,171.08,171.06,80.0]
[1748208745411,3.2772451,171.07,171.06,80.0]
[1748208748112,3.2772451,171.07,171.06,80.14216157]
[1748208748317,7.36539464,171.1,171.06,105.69541625]
[1748208748613,7.36539464,171.1,171.07,25.55325468]
[1748208749415,3.2772451,171.1,171.07,25.55325468]
[1748208749623,25.55325468,171.13,171.07,25.55325468]
[1748208749983,6.3224,171.15,171.08,25.55325468]
[1748208750216,25.55325468,171.14,171.09,0.14216157]
[1748208750603,25.55325468,171.15,171.09,25.69541625]
[1748208751302,1.5425,171.16,171.09,25.69541625]
[1748208751303,25.55325468,171.14,171.09,25.69541625]
[1748208751625,25.55325468,171.14,171.09,0.14216157]
[1748208752619,25.55325468,171.14,171.09,25.69541625]
[1748208753212,1.5425,171.16,171.09,25.69541625]
[1748208753417,27.09575468,171.16,171.1,25.55325468]
[1748208753715,27.09575468,171.16,171.11,35.04]
[1748208754398,1.5425,171.16,171.11,35.04]
[1748208754599,25.55325468,171.17,171.11,60.59325468]
[1748208755425,25.55325468,171.17,171.12,25.55325468]
[1748208755600,25.55325468,171.18,171.13,44.92]
[1748208756115,28.83049978,171.19,171.13,70.47325468]
[1748208756314,1.5778,171.2,171.15,25.55325468]
[1748208756521,1.5778,171.2,171.16,35.04]
[1748208757290,25.55325468,171.21,171.16,35.04]
[1748208758009,11.15437094,171.24,171.16,35.04]
[1748208758322,25.55325468,171.21,171.16,35.04]
[1748208759320,10.83565085,171.24,171.16,35.04]
[1748208759516,25.55325468,171.2,171.16,35.04]
[1748208759829,25.55325468,171.21,171.16,35.04]
[1748208761319,10.83565085,171.24,171.16,35.04]
[1748208761534,25.55325468,171.23,171.17,25.69541625]
[1748208762421,25.55325468,171.23,171.18,25.55325468]
[1748208762610,25.55325468,171.23,171.19,43.16]
[1748208763127,27.10865468,171.24,171.19,43.16]
[1748208764002,1.5554,171.24,171.19,68.71325468]
[1748208764323,25.55325468,171.25,171.19,68.71325468]
[1748208766504,8.2404,171.28,171.19,68.71325468]
[1748208766709,25.55325468,171.25,171.19,68.71325468]
[1748208768635,8.2404,171.28,171.2,25.69541625]
[1748208768928,25.55325468,171.26,171.21,35.02]
[1748208770509,25.55325468,171.27,171.21,60.57325468]
[1748208775931,8.2404,171.28,171.21,60.57325468]
[1748208776138,25.55325468,171.27,171.21,60.57325468]
[1748208779547,1.5825,171.28,171.21,60.57325468]
[1748208779714,25.55325468,171.27,171.21,60.57325468]
[1748208781330,25.55325468,171.28,171.23,25.55325468]
[1748208782838,25.55325468,171.28,171.24,43.14]
[1748208783145,25.55325468,171.28,171.25,35.0]
[1748208785240,25.55325468,171.26,171.18,91.41362821]
[1748208785449,25.55325468,171.25,171.2,103.83541625]
[1748208786121,25.55325468,171.24,171.21,43.14]
[1748208786323,25.55325468,171.22,171.21,43.14]
[1748208788574,29.82459587,171.22,171.21,43.14]
[1748208789047,33.91449413,171.22,171.21,43.14]
[1748208789443,37.18293934,171.22,171.21,43.14]
[1748208790225,39.32025363,171.22,171.21,43.14]
[1748208791336,13.76699895,171.22,171.21,43.14]
[1748208791545,39.32025363,171.22,171.21,43.14]
[1748208793046,39.32025363,171.22,171.18,84.04]
[1748208793252,25.55325468,171.19,171.18,125.76]
[1748208793750,13.76699895,171.22,171.18,125.76]
[1748208793936,28.82169989,171.19,171.18,125.76]
[1748208794337,33.09304108,171.19,171.18,125.76]
[1748208795047,37.18293934,171.19,171.18,125.76]
[1748208796557,39.32779569,171.19,171.18,125.76]
[1748208799662,177.22779569,171.19,171.18,125.76]
[1748208800157,151.67454101,171.19,171.18,125.76]
[1748208800545,177.22779569,171.19,171.18,125.76]
[1748208802352,175.08293934,171.19,171.18,125.76]
[1748208802767,146.26123945,171.19,171.18,125.76]
[1748208803168,146.26123945,171.19,171.18,160.78]
[1748208803373,171.81449413,171.19,171.18,160.78]
[1748208803590,167.54315294,171.19,171.18,160.78]
[1748208803937,163.45325468,171.19,171.18,160.78]
[1748208804946,163.45325468,171.19,171.18,125.76]
[1748208805562,25.55325468,171.19,171.18,125.76]
[1748208805869,4.12126438,171.19,171.18,125.76]
[1748208806079,29.67451906,171.19,171.18,125.76]
[1748208807149,29.67451906,171.19,171.18,41.72]
[1748208807587,25.55325468,171.19,171.18,41.72]
[1748208808974,29.84345293,171.19,171.18,41.72]
[1748208809275,33.96319436,171.19,171.18,41.72]
[1748208815277,8.40993968,171.19,171.18,76.74]
[1748208815570,163.45325468,171.21,171.18,76.74]
[1748208816674,137.9,171.21,171.18,76.74]
[1748208816865,25.55325468,171.22,171.18,76.74]
[1748208817270,142.05476576,171.25,171.19,6.0872]
[1748208817576,3.29879274,171.24,171.2,35.16216157]
[1748208818767,25.55325468,171.25,171.2,60.71541625]
[1748208818968,25.55325468,171.26,171.2,66.55639503]
[1748208819163,25.55325468,171.27,171.22,0.14216157]
[1748208819367,25.55325468,171.27,171.23,35.16216157]
[1748208819672,25.55325468,171.27,171.24,41.74]
[1748208819872,25.55325468,171.27,171.25,35.02]
[1748208821058,25.55325468,171.28,171.25,35.02]
[1748208821667,3.29917926,171.29,171.25,35.02]
[1748208821668,2.91440646,171.3,171.25,35.02]
[1748208821863,25.55325468,171.28,171.25,35.02]
[1748208822352,4.1473967,171.29,171.25,60.57325468]
[1748208822782,25.55325468,171.3,171.26,0.14216157]
[1748208823081,25.55325468,171.31,171.26,25.69541625]
[1748208823466,28.85243394,171.31,171.26,25.69541625]
[1748208823666,3.29917926,171.31,171.27,25.55325468]
[1748208823867,3.29917926,171.31,171.28,60.69541625]
[1748208824283,25.55325468,171.33,171.28,60.69541625]
[1748208825578,4.15476576,171.35,171.29,44.20290354]
[1748208825776,4.15476576,171.35,171.31,44.34506511]
[1748208825979,4.15476576,171.35,171.32,35.0]
[1748208826160,29.70802044,171.35,171.32,35.0]
[1748208826363,25.55325468,171.35,171.32,35.0]
[1748208826573,25.55325468,171.34,171.32,35.0]
[1748208826772,25.55325468,171.33,171.32,40.68]
[1748208827378,51.55325468,171.33,171.32,40.68]
[1748208827682,26.0,171.3,171.27,40.68]
[1748208827979,25.55325468,171.28,171.27,40.68]
[1748208830386,29.6733443,171.28,171.27,40.68]
[1748208831673,33.95922429,171.28,171.27,40.68]
[1748208834408,8.40596961,171.28,171.27,40.68]
[1748208834569,33.95922429,171.28,171.27,40.68]
[1748208835487,8.40596961,171.28,171.27,40.68]
[1748208835693,33.95922429,171.28,171.27,40.68]
[1748208836073,8.40596961,171.28,171.27,75.68]
[1748208836590,4.12008962,171.28,171.27,75.68]
[1748208836792,25.55325468,171.29,171.27,75.68]
[1748208840092,137.9,171.33,171.27,75.68]
[1748208840289,25.55325468,171.29,171.27,75.68]
[1748208843093,137.9,171.32,171.27,75.68]
[1748208843298,25.55325468,171.3,171.27,75.68]
[1748208843783,25.55325468,171.29,171.27,75.68]
[1748208848807,25.55325468,171.3,171.27,75.68]
[1748208851089,137.9,171.32,171.27,75.68]
[1748208851294,25.55325468,171.3,171.27,75.68]
[1748208852692,137.9,171.32,171.27,75.68]
[1748208852897,25.55325468,171.3,171.27,75.68]
[1748208855613,137.9,171.32,171.28,0.14216157]
[1748208855800,137.9,171.32,171.29,35.0]
[1748208859115,4.14962285,171.31,171.29,35.0]
[1748208859812,8.45457744,171.31,171.29,35.0]
[1748208860114,4.30495459,171.31,171.3,0.14216157]
[1748208860517,4.30495459,171.31,171.3,25.69541625]
[1748208860815,4.30495459,171.31,171.3,0.14216157]
[1748208861011,137.9,171.32,171.3,0.14216157]
[1748208861216,137.9,171.32,171.31,35.14216157]
[1748208861418,25.55325468,171.35,171.31,35.14216157]
[1748208861613,2.15459779,171.34,171.31,35.14216157]
[1748208861812,2.15459779,171.34,171.32,0.14216157]
[1748208861813,6.46379337,171.34,171.32,0.14216157]
[1748208862015,6.46379337,171.34,171.33,74.84]
[1748208862400,4.30919558,171.34,171.33,74.84]
[1748208862606,4.30919558,171.34,171.33,74.98216157]
[1748208862807,3.31000155,171.36,171.34,0.14216157]
[1748208863002,3.31000155,171.36,171.35,35.0]